[Event "Titled Tuesday Blitz July 11 Late 2023"]
[White "Duda, Jan-Krzysztof"]
[Black "Ovchinnikov, Vsevolod"]
[WhiteFideId "1170546"]
[BlackFideId "24176842"]
[WhiteElo "3047"]
[BlackElo "2638"]
[Result "1/2-1/2"]
[Round "5"]
[TimeControl "180+2"]
[Date "2023.07.11"]
[WhiteClock "0:00:08"]
[BlackClock "0:00:09"]
[Board "17"]

1. d4 {[%clk 0:02:06]}  Nf6 {[%clk 0:02:59]} 2. c4 {[%clk 0:02:02]}  g6 {[%clk 0:02:59]} 3. g3 {[%clk 0:02:01]}  d5 {[%clk 0:02:59]} 4. cxd5 {[%clk 0:02:00]}  Nxd5 {[%clk 0:03:00]} 5. Bg2 {[%clk 0:02:01]}  Bg7 {[%clk 0:03:01]} 6. Nf3 {[%clk 0:02:01]}  Nb6 {[%clk 0:03:01]} 7. Nc3 {[%clk 0:01:59]}  Nc6 {[%clk 0:03:02]} 8. e3 {[%clk 0:01:59]}  O-O {[%clk 0:02:57]} 9. O-O {[%clk 0:01:59]}  e5 {[%clk 0:02:58]} 10. d5 {[%clk 0:01:58]}  Ne7 {[%clk 0:02:59]} 11. e4 {[%clk 0:01:58]}  Bg4 {[%clk 0:02:59]} 12. h3 {[%clk 0:01:56]}  Bxf3 {[%clk 0:03:00]} 13. Qxf3 {[%clk 0:01:57]}  c6 {[%clk 0:03:00]} 14. Rd1 {[%clk 0:01:53]}  cxd5 {[%clk 0:03:01]} 15. exd5 {[%clk 0:01:43]}  Nf5 {[%clk 0:03:00]} 16. d6 {[%clk 0:01:43]}  Rb8 {[%clk 0:02:51]} 17. Qd3 {[%clk 0:01:35]}  Qd7 {[%clk 0:02:06]} 18. b3 {[%clk 0:01:03]}  Rbc8 {[%clk 0:01:34]} 19. Ba3 {[%clk 0:01:02]}  Nd4 {[%clk 0:01:34]} 20. Rac1 {[%clk 0:01:00]}  Rfd8 {[%clk 0:01:11]} 21. Qd2 {[%clk 0:00:45]}  h6 {[%clk 0:00:34]} 22. Bb4 {[%clk 0:00:41]}  Kh7 {[%clk 0:00:31]} 23. Ne4 {[%clk 0:00:39]}  Qf5 {[%clk 0:00:19]} 24. g4 {[%clk 0:00:23]}  Nf3+ {[%clk 0:00:14]} 25. Bxf3 {[%clk 0:00:23]}  Qxf3 {[%clk 0:00:14]} 26. Qe3 {[%clk 0:00:24]}  Qxe3 {[%clk 0:00:14]} 27. fxe3 {[%clk 0:00:24]}  Rxc1 {[%clk 0:00:09]} 28. Rxc1 {[%clk 0:00:24]}  f5 {[%clk 0:00:10]} 29. Nc3 {[%clk 0:00:13]}  e4 {[%clk 0:00:06]} 30. gxf5 {[%clk 0:00:12]}  gxf5 {[%clk 0:00:07]} 31. Bc5 {[%clk 0:00:11]}  Nd7 {[%clk 0:00:04]} 32. Bxa7 {[%clk 0:00:10]}  Rc8 {[%clk 0:00:05]} 33. Ne2 {[%clk 0:00:09]}  Rxc1+ {[%clk 0:00:04]} 34. Nxc1 {[%clk 0:00:10]}  Be5 {[%clk 0:00:04]} 35. Ne2 {[%clk 0:00:07]}  Bxd6 {[%clk 0:00:05]} 36. Bd4 {[%clk 0:00:07]}  Kg6 {[%clk 0:00:05]} 37. Kf2 {[%clk 0:00:07]}  Kg5 {[%clk 0:00:05]} 38. a4 {[%clk 0:00:07]}  Ne5 {[%clk 0:00:04]} 39. Bxe5 {[%clk 0:00:04]}  Bxe5 {[%clk 0:00:05]} 40. b4 {[%clk 0:00:04]}  Kf6 {[%clk 0:00:03]} 41. a5 {[%clk 0:00:03]}  Bc7 {[%clk 0:00:03]} 42. Nc3 {[%clk 0:00:02]}  Ke5 {[%clk 0:00:03]} 43. Kg3 {[%clk 0:00:01]}  Bd8 {[%clk 0:00:02]} 44. Kf2 {[%clk 0:00:01]}  Bc7 {[%clk 0:00:02]} 45. Ke2 {[%clk 0:00:02]}  Bd8 {[%clk 0:00:02]} 46. Kd2 {[%clk 0:00:02]}  Be7 {[%clk 0:00:03]} 47. b5 {[%clk 0:00:02]}  Bb4 {[%clk 0:00:03]} 48. a6 {[%clk 0:00:02]}  bxa6 {[%clk 0:00:04]} 49. bxa6 {[%clk 0:00:03]}  Bc5 {[%clk 0:00:04]} 50. Nb5 {[%clk 0:00:04]}  f4 {[%clk 0:00:04]} 51. exf4+ {[%clk 0:00:03]}  Kxf4 {[%clk 0:00:05]} 52. a7 {[%clk 0:00:03]}  Bxa7 {[%clk 0:00:05]} 53. Nxa7 {[%clk 0:00:03]}  Kf3 {[%clk 0:00:06]} 54. Ke1 {[%clk 0:00:04]}  Kg3 {[%clk 0:00:06]} 55. Nc6 {[%clk 0:00:04]}  Kxh3 {[%clk 0:00:07]} 56. Ne7 {[%clk 0:00:04]}  h5 {[%clk 0:00:07]} 57. Ng6 {[%clk 0:00:05]}  Kg4 {[%clk 0:00:07]} 58. Ke2 {[%clk 0:00:05]}  h4 {[%clk 0:00:07]} 59. Nxh4 {[%clk 0:00:06]}  Kxh4 {[%clk 0:00:08]} 60. Ke3 {[%clk 0:00:07]}  Kg3 {[%clk 0:00:09]} 61. Kxe4 {[%clk 0:00:08]} 1/2-1/2


[Site "https://www.chess.com"]

[Event "Titled Tuesday Blitz July 11 Late 2023"]
[White "Bjelobrk, Igor"]
[Black "Bortnyk, Mykola"]
[WhiteFideId "4300726"]
[BlackFideId "14120836"]
[WhiteElo "2637"]
[BlackElo "2993"]
[Result "0-1"]
[Round "5"]
[TimeControl "180+2"]
[Date "2023.07.11"]
[WhiteClock "0:00:07"]
[BlackClock "0:01:26"]
[Board "18"]

1. d4 {[%clk 0:02:56]}  f5 {[%clk 0:03:00]} 2. Nc3 {[%clk 0:02:55]}  Nf6 {[%clk 0:02:59]} 3. Bg5 {[%clk 0:02:54]}  d5 {[%clk 0:03:00]} 4. Bxf6 {[%clk 0:02:52]}  exf6 {[%clk 0:03:00]} 5. e3 {[%clk 0:02:51]}  Be6 {[%clk 0:02:59]} 6. Bd3 {[%clk 0:02:50]}  h5 {[%clk 0:02:57]} 7. h4 {[%clk 0:02:49]}  Nc6 {[%clk 0:02:55]} 8. a3 {[%clk 0:02:46]}  Qd7 {[%clk 0:02:52]} 9. Nge2 {[%clk 0:02:45]}  g6 {[%clk 0:02:50]} 10. b3 {[%clk 0:02:45]}  a6 {[%clk 0:02:49]} 11. Na4 {[%clk 0:02:42]}  Bd6 {[%clk 0:02:46]} 12. c4 {[%clk 0:02:40]}  Bf7 {[%clk 0:02:29]} 13. Nac3 {[%clk 0:02:23]}  O-O {[%clk 0:02:20]} 14. Nxd5 {[%clk 0:02:18]}  Bxd5 {[%clk 0:02:17]} 15. cxd5 {[%clk 0:02:18]}  Ne7 {[%clk 0:02:18]} 16. Nc3 {[%clk 0:02:12]}  b5 {[%clk 0:02:17]} 17. O-O {[%clk 0:02:08]}  Kg7 {[%clk 0:02:16]} 18. Qf3 {[%clk 0:01:30]}  Bxa3 {[%clk 0:02:05]} 19. Rxa3 {[%clk 0:01:26]}  b4 {[%clk 0:02:05]} 20. Ra5 {[%clk 0:01:25]}  bxc3 {[%clk 0:02:05]} 21. Rc1 {[%clk 0:01:23]}  Rfd8 {[%clk 0:01:56]} 22. Rxc3 {[%clk 0:01:05]}  Nxd5 {[%clk 0:01:45]} 23. Rxd5 {[%clk 0:00:57]}  Qxd5 {[%clk 0:01:45]} 24. Rxc7+ {[%clk 0:00:57]}  Kh6 {[%clk 0:01:46]} 25. Qf4+ {[%clk 0:00:42]}  g5 {[%clk 0:01:45]} 26. Bxf5 {[%clk 0:00:30]}  Rd7 {[%clk 0:01:45]} 27. Rxd7 {[%clk 0:00:17]}  Qxd7 {[%clk 0:01:45]} 28. hxg5+ {[%clk 0:00:13]}  fxg5 {[%clk 0:01:46]} 29. Qe5 {[%clk 0:00:10]}  Qf7 {[%clk 0:01:29]} 30. d5 {[%clk 0:00:08]}  Rf8 {[%clk 0:01:27]} 31. e4 {[%clk 0:00:08]}  Qf6 {[%clk 0:01:26]} 32. Qc7 {[%clk 0:00:08]}  Rf7 {[%clk 0:01:26]} 33. d6 {[%clk 0:00:08]}  Rxc7 {[%clk 0:01:25]} 34. dxc7 {[%clk 0:00:08]}  Qa1+ {[%clk 0:01:25]} 35. Kh2 {[%clk 0:00:07]}  Qe5+ {[%clk 0:01:26]} 0-1


[Site "https://www.chess.com"]

[Event "Titled Tuesday Blitz July 11 Late 2023"]
[White "Kollars, Dmitrij"]
[Black "Martinez Ramirez, Lennis"]
[WhiteFideId "12909572"]
[BlackFideId "3509079"]
[WhiteElo "2976"]
[BlackElo "2635"]
[Result "1/2-1/2"]
[Round "5"]
[TimeControl "180+2"]
[Date "2023.07.11"]
[WhiteClock "0:00:06"]
[BlackClock "0:00:06"]
[Board "20"]

1. d4 {[%clk 0:02:52]}  Nf6 {[%clk 0:02:50]} 2. Nf3 {[%clk 0:02:52]}  e6 {[%clk 0:02:50]} 3. c4 {[%clk 0:02:52]}  d5 {[%clk 0:02:50]} 4. g3 {[%clk 0:02:52]}  Be7 {[%clk 0:02:49]} 5. Bg2 {[%clk 0:02:53]}  O-O {[%clk 0:02:48]} 6. Nc3 {[%clk 0:02:52]}  dxc4 {[%clk 0:02:47]} 7. Ne5 {[%clk 0:02:52]}  Nc6 {[%clk 0:02:46]} 8. Bxc6 {[%clk 0:02:52]}  bxc6 {[%clk 0:02:47]} 9. Nxc6 {[%clk 0:02:52]}  Qe8 {[%clk 0:02:47]} 10. Nxe7+ {[%clk 0:02:53]}  Qxe7 {[%clk 0:02:48]} 11. Qa4 {[%clk 0:02:54]}  c5 {[%clk 0:02:47]} 12. dxc5 {[%clk 0:02:55]}  Qxc5 {[%clk 0:02:47]} 13. Be3 {[%clk 0:02:52]}  Qc7 {[%clk 0:02:45]} 14. f3 {[%clk 0:02:52]}  e5 {[%clk 0:02:37]} 15. Qa3 {[%clk 0:02:49]}  Be6 {[%clk 0:02:22]} 16. O-O-O {[%clk 0:02:47]}  h6 {[%clk 0:02:19]} 17. Qc5 {[%clk 0:02:45]}  Rfc8 {[%clk 0:02:04]} 18. Qxc7 {[%clk 0:02:37]}  Rxc7 {[%clk 0:02:05]} 19. Rd6 {[%clk 0:02:37]}  Kf8 {[%clk 0:01:47]} 20. Rhd1 {[%clk 0:02:37]}  Ke7 {[%clk 0:01:46]} 21. Ra6 {[%clk 0:02:17]}  Rb7 {[%clk 0:01:37]} 22. Na4 {[%clk 0:02:06]}  Nd7 {[%clk 0:01:33]} 23. Nc3 {[%clk 0:01:58]}  Rab8 {[%clk 0:01:33]} 24. Bxa7 {[%clk 0:01:51]}  Rc8 {[%clk 0:01:07]} 25. Bf2 {[%clk 0:01:51]}  Nc5 {[%clk 0:01:06]} 26. Bxc5+ {[%clk 0:01:50]}  Rxc5 {[%clk 0:01:06]} 27. Rdd6 {[%clk 0:01:46]}  g5 {[%clk 0:01:04]} 28. a4 {[%clk 0:01:42]}  h5 {[%clk 0:01:03]} 29. Ne4 {[%clk 0:01:21]}  Rc8 {[%clk 0:01:03]} 30. Rdb6 {[%clk 0:01:17]}  Rxb6 {[%clk 0:00:44]} 31. Rxb6 {[%clk 0:01:18]}  g4 {[%clk 0:00:44]} 32. a5 {[%clk 0:01:14]}  Bd5 {[%clk 0:00:39]} 33. Nc3 {[%clk 0:01:14]}  Bc6 {[%clk 0:00:31]} 34. fxg4 {[%clk 0:01:03]}  hxg4 {[%clk 0:00:32]} 35. Rb4 {[%clk 0:00:44]}  Bg2 {[%clk 0:00:32]} 36. Kd2 {[%clk 0:00:40]}  f5 {[%clk 0:00:32]} 37. Ke3 {[%clk 0:00:40]}  Ra8 {[%clk 0:00:31]} 38. Rb5 {[%clk 0:00:35]}  Kd6 {[%clk 0:00:30]} 39. Rb6+ {[%clk 0:00:33]}  Kc5 {[%clk 0:00:25]} 40. Na4+ {[%clk 0:00:28]}  Kd5 {[%clk 0:00:24]} 41. Rb5+ {[%clk 0:00:27]}  Kd6 {[%clk 0:00:22]} 42. Rb6+ {[%clk 0:00:27]}  Bc6 {[%clk 0:00:20]} 43. a6 {[%clk 0:00:11]}  Kc7 {[%clk 0:00:20]} 44. Rb4 {[%clk 0:00:11]}  Rxa6 {[%clk 0:00:20]} 45. Nc3 {[%clk 0:00:11]}  Rb6 {[%clk 0:00:18]} 46. Na2 {[%clk 0:00:07]}  Rxb4 {[%clk 0:00:17]} 47. Nxb4 {[%clk 0:00:07]}  Bb7 {[%clk 0:00:17]} 48. Kd2 {[%clk 0:00:07]}  Kd6 {[%clk 0:00:18]} 49. e3 {[%clk 0:00:08]}  Kc5 {[%clk 0:00:18]} 50. Kc3 {[%clk 0:00:08]}  Be4 {[%clk 0:00:17]} 51. Na2 {[%clk 0:00:08]}  Kb5 {[%clk 0:00:17]} 52. Nc1 {[%clk 0:00:08]}  Kc5 {[%clk 0:00:17]} 53. Ne2 {[%clk 0:00:09]}  Bf3 {[%clk 0:00:16]} 54. Ng1 {[%clk 0:00:09]}  Bd1 {[%clk 0:00:16]} 55. h4 {[%clk 0:00:08]}  gxh3 {[%clk 0:00:13]} 56. Nxh3 {[%clk 0:00:09]}  Bg4 {[%clk 0:00:13]} 57. Ng5 {[%clk 0:00:09]}  Kd5 {[%clk 0:00:12]} 58. Kb4 {[%clk 0:00:09]}  Be2 {[%clk 0:00:11]} 59. Kc3 {[%clk 0:00:09]}  Bf1 {[%clk 0:00:10]} 60. Kd2 {[%clk 0:00:10]}  Bg2 {[%clk 0:00:09]} 61. Nf7 {[%clk 0:00:09]}  Bf1 {[%clk 0:00:06]} 62. Ke1 {[%clk 0:00:08]}  Bd3 {[%clk 0:00:06]} 63. Kd2 {[%clk 0:00:08]}  Bf1 {[%clk 0:00:06]} 64. Nd8 {[%clk 0:00:07]}  Bd3 {[%clk 0:00:06]} 65. Nb7 {[%clk 0:00:07]}  Bf1 {[%clk 0:00:06]} 66. Nd8 {[%clk 0:00:06]}  Ke4 {[%clk 0:00:06]} 67. Nf7 {[%clk 0:00:03]}  Bd3 {[%clk 0:00:01]} 68. Ng5+ {[%clk 0:00:03]}  Kd5 {[%clk 0:00:01]} 69. b4 {[%clk 0:00:03]}  Be4 {[%clk 0:00:01]} 70. Kc3 {[%clk 0:00:03]}  Bd3 {[%clk 0:00:01]} 71. Kd2 {[%clk 0:00:03]}  Kc6 {[%clk 0:00:01]} 72. e4 {[%clk 0:00:02]}  fxe4 {[%clk 0:00:01]} 73. g4 {[%clk 0:00:02]}  Kb5 {[%clk 0:00:02]} 74. Kc3 {[%clk 0:00:02]}  e3 {[%clk 0:00:02]} 75. Nf3 {[%clk 0:00:03]}  e2 {[%clk 0:00:03]} 76. Ne1 {[%clk 0:00:03]}  Kc6 {[%clk 0:00:03]} 77. g5 {[%clk 0:00:03]}  Kd5 {[%clk 0:00:04]} 78. b5 {[%clk 0:00:03]}  Kc5 {[%clk 0:00:04]} 79. Kd2 {[%clk 0:00:03]}  Bf5 {[%clk 0:00:03]} 80. Kxe2 {[%clk 0:00:04]}  Kxb5 {[%clk 0:00:04]} 81. Ke3 {[%clk 0:00:04]}  Kb4 {[%clk 0:00:05]} 82. Kd2 {[%clk 0:00:05]}  c3+ {[%clk 0:00:05]} 83. Kc1 {[%clk 0:00:05]}  Kb3 {[%clk 0:00:06]} 84. Nf3 {[%clk 0:00:05]}  Kc4 {[%clk 0:00:05]} 85. Nxe5+ {[%clk 0:00:05]}  Kd4 {[%clk 0:00:05]} 86. Nf7 {[%clk 0:00:06]}  Kd5 {[%clk 0:00:05]} 87. Nh6 {[%clk 0:00:05]}  Bg6 {[%clk 0:00:06]} 88. Ng4 {[%clk 0:00:05]}  Ke4 {[%clk 0:00:05]} 89. Nf2+ {[%clk 0:00:05]}  Kf4 {[%clk 0:00:06]} 90. Nd1 {[%clk 0:00:06]}  Kxg5 {[%clk 0:00:06]} 91. Nxc3 {[%clk 0:00:06]} 1/2-1/2


[Site "https://www.chess.com"]

[Event "Titled Tuesday Blitz July 11 Late 2023"]
[White "Di Berardino, Diego Rafael"]
[Black "Kramnik, Vladimir"]
[WhiteFideId "2105446"]
[BlackFideId "4101588"]
[WhiteElo "2633"]
[BlackElo "2970"]
[Result "0-1"]
[Round "5"]
[TimeControl "180+2"]
[Date "2023.07.11"]
[WhiteClock "0:00:00"]
[BlackClock "0:00:06"]
[Board "21"]

1. d4 {[%clk 0:03:00]}  Nf6 {[%clk 0:02:57]} 2. c4 {[%clk 0:03:00]}  e6 {[%clk 0:02:58]} 3. Nc3 {[%clk 0:03:00]}  d5 {[%clk 0:02:57]} 4. cxd5 {[%clk 0:02:57]}  exd5 {[%clk 0:02:57]} 5. Bg5 {[%clk 0:02:57]}  c6 {[%clk 0:02:57]} 6. e3 {[%clk 0:02:57]}  h6 {[%clk 0:02:57]} 7. Bh4 {[%clk 0:02:57]}  Be7 {[%clk 0:02:57]} 8. Bd3 {[%clk 0:02:57]}  O-O {[%clk 0:02:58]} 9. Nge2 {[%clk 0:02:56]}  Re8 {[%clk 0:02:57]} 10. O-O {[%clk 0:02:55]}  Nbd7 {[%clk 0:02:57]} 11. f3 {[%clk 0:02:43]}  b5 {[%clk 0:02:57]} 12. Qd2 {[%clk 0:02:39]}  Bb7 {[%clk 0:02:53]} 13. Rae1 {[%clk 0:02:37]}  a6 {[%clk 0:02:46]} 14. Qc2 {[%clk 0:02:06]}  c5 {[%clk 0:02:40]} 15. dxc5 {[%clk 0:01:57]}  Bxc5 {[%clk 0:02:39]} 16. Bf2 {[%clk 0:01:37]}  Bxe3 {[%clk 0:02:33]} 17. Bxe3 {[%clk 0:01:37]}  Rxe3 {[%clk 0:02:34]} 18. Nd4 {[%clk 0:01:36]}  Rxe1 {[%clk 0:02:30]} 19. Rxe1 {[%clk 0:01:37]}  Qb6 {[%clk 0:02:26]} 20. Qf2 {[%clk 0:01:35]}  g6 {[%clk 0:02:16]} 21. Kh1 {[%clk 0:01:11]}  h5 {[%clk 0:02:07]} 22. h3 {[%clk 0:01:09]}  Re8 {[%clk 0:02:05]} 23. Rxe8+ {[%clk 0:01:07]}  Nxe8 {[%clk 0:02:05]} 24. Nce2 {[%clk 0:01:05]}  Ng7 {[%clk 0:01:49]} 25. Qg3 {[%clk 0:00:58]}  b4 {[%clk 0:01:39]} 26. Qg5 {[%clk 0:00:49]}  Qf6 {[%clk 0:01:32]} 27. Qc1 {[%clk 0:00:47]}  Ne8 {[%clk 0:01:20]} 28. Qd2 {[%clk 0:00:34]}  Qe7 {[%clk 0:01:19]} 29. Qc2 {[%clk 0:00:25]}  Ne5 {[%clk 0:01:08]} 30. Nf4 {[%clk 0:00:11]}  Qg5 {[%clk 0:01:04]} 31. Nde2 {[%clk 0:00:06]}  Qe7 {[%clk 0:00:49]} 32. Qd2 {[%clk 0:00:06]}  Qc5 {[%clk 0:00:44]} 33. b3 {[%clk 0:00:05]}  Nf6 {[%clk 0:00:41]} 34. Kh2 {[%clk 0:00:04]}  a5 {[%clk 0:00:40]} 35. Bb1 {[%clk 0:00:04]}  Qf2 {[%clk 0:00:32]} 36. Kh1 {[%clk 0:00:02]}  h4 {[%clk 0:00:20]} 37. Qd1 {[%clk 0:00:02]}  Nxf3 {[%clk 0:00:14]} 38. gxf3 {[%clk 0:00:01]}  Qxf3+ {[%clk 0:00:14]} 39. Kh2 {[%clk 0:00:01]}  d4 {[%clk 0:00:15]} 40. Qg1 {[%clk 0:00:01]}  Nh5 {[%clk 0:00:07]} 41. Bxg6 {[%clk 0:00:01]}  fxg6 {[%clk 0:00:05]} 42. Qxg6+ {[%clk 0:00:00]}  Ng7 {[%clk 0:00:06]} 0-1


[Site "https://www.chess.com"]

[Event "Titled Tuesday Blitz July 11 Late 2023"]
[White "Makarian, Rudik"]
[Black "Rostomyan, Mikayel"]
[WhiteFideId "44105681"]
[BlackFideId "13313754"]
[WhiteElo "2957"]
[BlackElo "2630"]
[Result "0-1"]
[Round "5"]
[TimeControl "180+2"]
[Date "2023.07.11"]
[WhiteClock "0:00:01"]
[BlackClock "0:00:14"]
[Board "22"]

1. d4 {[%clk 0:03:00]}  d5 {[%clk 0:02:56]} 2. c4 {[%clk 0:03:01]}  e5 {[%clk 0:02:56]} 3. dxe5 {[%clk 0:03:01]}  Ne7 {[%clk 0:02:56]} 4. a3 {[%clk 0:02:59]}  Nbc6 {[%clk 0:02:50]} 5. Nf3 {[%clk 0:02:58]}  Be6 {[%clk 0:02:49]} 6. cxd5 {[%clk 0:02:54]}  Qxd5 {[%clk 0:02:48]} 7. Qxd5 {[%clk 0:02:53]}  Nxd5 {[%clk 0:02:49]} 8. e4 {[%clk 0:02:50]}  Nb6 {[%clk 0:02:49]} 9. Nc3 {[%clk 0:02:51]}  h6 {[%clk 0:02:46]} 10. Be2 {[%clk 0:02:46]}  g5 {[%clk 0:02:46]} 11. h3 {[%clk 0:02:45]}  Bg7 {[%clk 0:02:46]} 12. O-O {[%clk 0:02:41]}  O-O-O {[%clk 0:02:40]} 13. Be3 {[%clk 0:02:32]}  Nxe5 {[%clk 0:02:32]} 14. Nd4 {[%clk 0:02:27]}  Bc4 {[%clk 0:02:25]} 15. Nf5 {[%clk 0:02:27]}  Bf8 {[%clk 0:02:16]} 16. Bd4 {[%clk 0:02:17]}  f6 {[%clk 0:01:53]} 17. Rfc1 {[%clk 0:02:16]}  Bxe2 {[%clk 0:01:46]} 18. Nxe2 {[%clk 0:02:17]}  Rh7 {[%clk 0:01:29]} 19. Rc2 {[%clk 0:02:13]}  Rhd7 {[%clk 0:01:27]} 20. g4 {[%clk 0:02:02]}  Nf3+ {[%clk 0:01:20]} 21. Kg2 {[%clk 0:02:02]}  Nxd4 {[%clk 0:01:19]} 22. Nexd4 {[%clk 0:02:03]}  Rxd4 {[%clk 0:01:19]} 23. Nxd4 {[%clk 0:02:03]}  Rxd4 {[%clk 0:01:20]} 24. Re2 {[%clk 0:01:57]}  Bd6 {[%clk 0:01:20]} 25. h4 {[%clk 0:01:57]}  Nc4 {[%clk 0:01:16]} 26. hxg5 {[%clk 0:01:57]}  hxg5 {[%clk 0:01:15]} 27. Rh1 {[%clk 0:01:57]}  b6 {[%clk 0:01:15]} 28. Rc1 {[%clk 0:01:51]}  Kb7 {[%clk 0:01:12]} 29. Rcc2 {[%clk 0:01:47]}  Ne5 {[%clk 0:01:09]} 30. f3 {[%clk 0:01:41]}  Nd3 {[%clk 0:01:06]} 31. Kf1 {[%clk 0:01:35]}  Nf4 {[%clk 0:01:02]} 32. Red2 {[%clk 0:01:35]}  c5 {[%clk 0:00:59]} 33. Rxd4 {[%clk 0:01:26]}  cxd4 {[%clk 0:01:00]} 34. Ke1 {[%clk 0:01:26]}  d3 {[%clk 0:00:53]} 35. Rc1 {[%clk 0:01:12]}  Ng2+ {[%clk 0:00:35]} 36. Kf2 {[%clk 0:01:09]}  Nf4 {[%clk 0:00:35]} 37. Ke3 {[%clk 0:01:06]}  Be5 {[%clk 0:00:32]} 38. Rb1 {[%clk 0:01:00]}  Bd6 {[%clk 0:00:31]} 39. b4 {[%clk 0:00:58]}  Be5 {[%clk 0:00:29]} 40. Kd2 {[%clk 0:00:58]}  a6 {[%clk 0:00:24]} 41. a4 {[%clk 0:00:50]}  Kc6 {[%clk 0:00:23]} 42. Rc1+ {[%clk 0:00:48]}  Kd6 {[%clk 0:00:23]} 43. Rc8 {[%clk 0:00:47]}  b5 {[%clk 0:00:17]} 44. a5 {[%clk 0:00:38]}  Kd7 {[%clk 0:00:16]} 45. Ra8 {[%clk 0:00:38]}  Bd6 {[%clk 0:00:16]} 46. Ra7+ {[%clk 0:00:26]}  Kc8 {[%clk 0:00:16]} 47. Rxa6 {[%clk 0:00:09]}  Bxb4+ {[%clk 0:00:16]} 48. Kd1 {[%clk 0:00:07]}  Ng2 {[%clk 0:00:15]} 49. Rc6+ {[%clk 0:00:01]}  Kd7 {[%clk 0:00:14]} 0-1


[Site "https://www.chess.com"]

[Event "Titled Tuesday Blitz July 11 Late 2023"]
[White "Keymer, Vincent"]
[Black "Fiorito, Joaquin"]
[WhiteFideId "12940690"]
[BlackFideId "180173"]
[WhiteElo "2924"]
[BlackElo "2627"]
[Result "1-0"]
[Round "5"]
[TimeControl "180+2"]
[Date "2023.07.11"]
[WhiteClock "0:00:10"]
[BlackClock "0:00:00"]
[Board "23"]

1. a3 {[%clk 0:02:53]}  d5 {[%clk 0:02:58]} 2. Nf3 {[%clk 0:02:53]}  Nf6 {[%clk 0:02:58]} 3. e3 {[%clk 0:02:53]}  Bf5 {[%clk 0:02:57]} 4. c4 {[%clk 0:02:54]}  c6 {[%clk 0:02:57]} 5. b4 {[%clk 0:02:50]}  e6 {[%clk 0:02:57]} 6. Bb2 {[%clk 0:02:51]}  Be7 {[%clk 0:02:55]} 7. Be2 {[%clk 0:02:51]}  h6 {[%clk 0:02:55]} 8. O-O {[%clk 0:02:51]}  O-O {[%clk 0:02:56]} 9. Nc3 {[%clk 0:02:52]}  Nbd7 {[%clk 0:02:56]} 10. h3 {[%clk 0:02:52]}  Bh7 {[%clk 0:02:55]} 11. Rc1 {[%clk 0:02:52]}  Bd6 {[%clk 0:02:50]} 12. Re1 {[%clk 0:02:45]}  Re8 {[%clk 0:02:50]} 13. Bf1 {[%clk 0:02:42]}  Qe7 {[%clk 0:02:45]} 14. cxd5 {[%clk 0:02:30]}  exd5 {[%clk 0:02:45]} 15. Ra1 {[%clk 0:02:23]}  Ne5 {[%clk 0:02:44]} 16. Nxe5 {[%clk 0:02:13]}  Qxe5 {[%clk 0:02:44]} 17. g3 {[%clk 0:02:13]}  h5 {[%clk 0:02:33]} 18. Qb3 {[%clk 0:01:49]}  Qf5 {[%clk 0:02:30]} 19. Bg2 {[%clk 0:01:43]}  h4 {[%clk 0:02:18]} 20. g4 {[%clk 0:01:42]}  Qd3 {[%clk 0:01:36]} 21. Qd1 {[%clk 0:01:19]}  Rad8 {[%clk 0:01:17]} 22. Rc1 {[%clk 0:01:05]}  d4 {[%clk 0:01:08]} 23. Ne2 {[%clk 0:00:59]}  dxe3 {[%clk 0:00:54]} 24. dxe3 {[%clk 0:01:00]}  Qg6 {[%clk 0:00:51]} 25. Nd4 {[%clk 0:00:50]}  Ne4 {[%clk 0:00:46]} 26. Qe2 {[%clk 0:00:49]}  Be5 {[%clk 0:00:42]} 27. Red1 {[%clk 0:00:28]}  Qf6 {[%clk 0:00:35]} 28. Qf3 {[%clk 0:00:28]}  Qh6 {[%clk 0:00:25]} 29. Ba1 {[%clk 0:00:26]}  Ng5 {[%clk 0:00:24]} 30. Qe2 {[%clk 0:00:26]}  Be4 {[%clk 0:00:21]} 31. Nf5 {[%clk 0:00:18]}  Bxf5 {[%clk 0:00:19]} 32. Rxd8 {[%clk 0:00:18]}  Rxd8 {[%clk 0:00:19]} 33. Bxe5 {[%clk 0:00:19]}  Bd3 {[%clk 0:00:18]} 34. Qd2 {[%clk 0:00:15]}  Ne6 {[%clk 0:00:18]} 35. Qb2 {[%clk 0:00:13]}  Qg6 {[%clk 0:00:17]} 36. Rd1 {[%clk 0:00:13]}  Re8 {[%clk 0:00:16]} 37. Qc3 {[%clk 0:00:12]}  Be4 {[%clk 0:00:16]} 38. f3 {[%clk 0:00:13]}  Bc2 {[%clk 0:00:13]} 39. Rd2 {[%clk 0:00:13]}  Bb1 {[%clk 0:00:12]} 40. f4 {[%clk 0:00:11]}  f6 {[%clk 0:00:06]} 41. f5 {[%clk 0:00:10]}  Qh6 {[%clk 0:00:03]} 42. Bh2 {[%clk 0:00:08]}  Ng5 {[%clk 0:00:03]} 43. Bf4 {[%clk 0:00:09]}  Qh7 {[%clk 0:00:01]} 44. Qb3+ {[%clk 0:00:09]}  Kh8 {[%clk 0:00:01]} 45. Qxb1 {[%clk 0:00:10]}  Nf7 {[%clk 0:00:01]} 46. Rd7 {[%clk 0:00:10]}  Ne5 {[%clk 0:00:02]} 47. Bxe5 {[%clk 0:00:10]}  fxe5 {[%clk 0:00:03]} 48. Qb3 {[%clk 0:00:10]}  Qh6 {[%clk 0:00:03]} 49. Be4 {[%clk 0:00:09]}  Qf6 {[%clk 0:00:03]} 50. Qf7 {[%clk 0:00:09]}  Qg5 {[%clk 0:00:01]} 51. Qxe8+ {[%clk 0:00:09]}  Kh7 {[%clk 0:00:00]} 52. Qg6+ {[%clk 0:00:10]} 1-0


[Site "https://www.chess.com"]